[Event "ETCC Open 2023"]
[Site "Budva"]
[Date "2023.11.13"]
[Round "3.55"]
[White "Sebenik, Matej"]
[Black "Pelletier, Yannick"]
[Result "1-0"]
[ECO "E09"]
[WhiteElo "2531"]
[BlackElo "2505"]
[Annotator "RC"]
[PlyCount "73"]
[EventDate "2023.11.10"]
[EventType "team-tourn"]
[EventCountry "MNE"]
[SourceTitle "playchess.com"]
[Source "ChessBase"]
[SourceQuality "1"]
[WhiteTeam "Slovenia"]
[BlackTeam "Switzerland"]
[WhiteTeamCountry "SLO"]
[BlackTeamCountry "SUI"]
[TimeControl "40/5400+30:1800+30"]

1. d4 {[%emt 0:00:08]} Nf6 {[%emt 0:00:43]} 2. c4 {[%emt 0:00:09]} e6 {[%emt 0:00:16]} 3. g3 {[%emt 0:00:42]} d5 {[%emt 0:00:10]} 4. Nf3 {[%emt 0:00:24]} Be7 {[%emt 0:00:14]} 5. Bg2 {[%emt 0:01:15]} O-O {[%emt 0:00:08]} 6. O-O {[%emt 0:05:59]} c6 {[%emt 0:00:20]} 7. Qc2 {[%emt 0:01:13]} b6 {[%emt 0:00:16]} 8. b3 {[%emt 0:07:16]} Nbd7 {[%emt 0:00:25]} 9. Rd1 {[%emt 0:00:10]} Ba6 {[%emt 0:05:10]} 10. Nbd2 {[%emt 0:00:27]} c5 {[%emt 0:05:41]} 11. e4 {[%emt 0:01:21]} dxc4 {[%emt 0:03:55]} 12. Nxc4 {[%emt 0:06:11]} cxd4 {[%emt 0:01:43]} 13. e5 {[%emt 0:02:49]} Nd5 {[%emt 0:02:01]} 14. Nxd4 {[%emt 0:00:05]} Rc8 {[%emt 0:09:34]} 15. Qb2 {[%emt 0:01:47]} Bb4 {[%emt 0:22:16]} 16. Bd2 {[%emt 0:04:18]} Bxd2 {[%emt 0:09:55]} 17. Qxd2 {[%emt 0:04:58]} Rc7 {[%emt 0:23:17]} 18. f4 {[%emt 0:05:58]} Nc5 {[%emt 0:02:48]} 19. Nd6 {[%emt 0:04:58]} Nb7 {[%emt 0:00:16]} 20. Bxd5 {[%emt 0:18:11]} exd5 {[%emt 0:00:03]} 21. Nxb7 {[%emt 0:00:09]} Bxb7 {[%emt 0:00:20]} 22. f5 {[%emt 0:01:48]} Re8 {[%emt 0:01:22]} 23. Re1 {[%emt 0:02:41]} Rce7 {[%emt 0:03:28]} 24. e6 {[%emt 0:00:31]} fxe6 {[%emt 0:05:43]} 25. fxe6 {[%emt 0:00:14]} Qd6 {[%emt 0:00:04]} 26. Rac1 {[%emt 0:07:55]} g6 {[%emt 0:00:20]} 27. Qg5 {[%emt 0:02:09]} Rf8 {[%emt 0:01:57]} 28. Rf1 {[%emt 0:07:53]} Ree8 {[%emt 0:00:35]} 29. h4 {[%emt 0:03:28]} Ba6 {[%emt 0:00:44]} 30. Rxf8+ {[%emt 0:01:41]} Rxf8 {[%emt 0:00:01]} 31. h5 {[%emt 0:02:10]} Bd3 {[%emt 0:00:20]} 32. h6 {[%emt 0:05:02]} a6 {[%emt 0:00:35]} 33. Re1 {[%emt 0:00:35]} Be4 {[%emt 0:00:44]} 34. Rf1 {[%emt 0:00:06]} Re8 {[%emt 0:01:02]} 35. Kh2 {[%emt 0:02:31]} Qa3 {[%emt 0:00:01]} 36. Qf6 {[%emt 0:00:37]} Qb2+ {[%emt 0:00:55]} 37. Rf2 {[%emt 0:00:04]} 1-0

[Event "ETCC Open 2023"]
[Site "Budva"]
[Date "2023.11.13"]
[Round "3.56"]
[White "Baenziger, Fabian"]
[Black "Borisek, Jure"]
[Result "1/2-1/2"]
[ECO "E11"]
[WhiteElo "2422"]
[BlackElo "2568"]
[Annotator "RC"]
[PlyCount "68"]
[EventDate "2023.11.10"]
[EventType "team-tourn"]
[EventCountry "MNE"]
[SourceTitle "playchess.com"]
[Source "ChessBase"]
[SourceQuality "1"]
[WhiteTeam "Switzerland"]
[BlackTeam "Slovenia"]
[WhiteTeamCountry "SUI"]
[BlackTeamCountry "SLO"]
[TimeControl "40/5400+30:1800+30"]

1. d4 {[%emt 0:00:04]} d5 {[%emt 0:00:16]} 2. c4 {[%emt 0:01:00]} e6 {[%emt 0:00:24]} 3. Nf3 {[%emt 0:00:21]} Nf6 {[%emt 0:00:14]} 4. g3 {[%emt 0:00:40]} Bb4+ {[%emt 0:00:12]} 5. Bd2 {[%emt 0:00:37]} a5 {[%emt 0:00:15]} 6. Bg2 {[%emt 0:06:44]} O-O {[%emt 0:00:32]} 7. Qc2 {[%emt 0:00:05]} c5 {[%emt 0:00:28]} 8. cxd5 {[%emt 0:00:21]} cxd4 {[%emt 0:00:13]} 9. Nxd4 {[%emt 0:03:04]} Qb6 {[%emt 0:00:44]} 10. e3 {[%emt 0:00:15]} exd5 {[%emt 0:00:13]} 11. a3 {[%emt 0:00:36]} Bxd2+ {[%emt 0:01:28]} 12. Nxd2 {[%emt 0:00:09]} Nc6 {[%emt 0:00:27]} 13. N2f3 {[%emt 0:02:16]} Bg4 {[%emt 0:05:02]} 14. O-O {[%emt 0:02:05]} Rac8 {[%emt 0:14:37]} 15. Qd3 {[%emt 0:09:49]} Ne4 {[%emt 0:12:40]} 16. Rab1 {[%emt 0:09:44]} Rfd8 {[%emt 0:18:40]} 17. Rfc1 {[%emt 0:17:32]} Nc5 {[%emt 0:09:07]} 18. Qc3 {[%emt 0:12:53]} Ne6 {[%emt 0:04:00]} 19. Nxe6 {[%emt 0:09:15]} fxe6 {[%emt 0:00:52]} 20. Ne5 {[%emt 0:04:07]} Bf5 {[%emt 0:02:41]} 21. Ra1 {[%emt 0:00:04]} Na7 {[%emt 0:07:06]} 22. Qd2 {[%emt 0:00:29]} Nc6 {[%emt 0:00:10]} 23. Nxc6 {[%emt 0:05:49]} Rxc6 {[%emt 0:01:14]} 24. Rxc6 {[%emt 0:01:11]} bxc6 {[%emt 0:00:04]} 25. b4 {[%emt 0:00:04]} axb4 {[%emt 0:00:24]} 26. axb4 {[%emt 0:00:05]} Rb8 {[%emt 0:04:50]} 27. Qc3 {[%emt 0:01:08]} Qxb4 {[%emt 0:00:17]} 28. Qxc6 {[%emt 0:00:06]} Qb6 {[%emt 0:00:35]} 29. Qxb6 {[%emt 0:04:54]} Rxb6 {[%emt 0:00:07]} 30. h4 {[%emt 0:00:37]} Kf7 {[%emt 0:02:04]} 31. Ra4 {[%emt 0:02:11]} h5 {[%emt 0:00:54]} 32. e4 {[%emt 0:00:23]} dxe4 {[%emt 0:00:21]} 33. Bxe4 {[%emt 0:00:04]} Kf6 {[%emt 0:00:20]} 34. Bxf5 {[%emt 0:00:11]} exf5 {[%emt 0:00:35]} 1/2-1/2

[Event "ETCC Open 2023"]
[Site "Budva"]
[Date "2023.11.13"]
[Round "3.57"]
[White "Dardha, Daniel"]
[Black "Pechac, Jergus"]
[Result "1-0"]
[ECO "E28"]
[WhiteElo "2575"]
[BlackElo "2580"]
[Annotator "TA"]
[PlyCount "102"]
[EventDate "2023.11.10"]
[EventType "team-tourn"]
[EventCountry "MNE"]
[SourceTitle "playchess.com"]
[Source "ChessBase"]
[SourceQuality "1"]
[WhiteTeam "Belgium"]
[BlackTeam "Slovakia"]
[WhiteTeamCountry "BEL"]
[BlackTeamCountry "SVK"]
[TimeControl "40/5400+30:1800+30"]

{[%evp 13,102,-16,-22,-29,-11,-15,-16,-20,-17,-14,-20,-38,-25,-82,-88,-88,-57,-75,-22,-24,-33,-30,0,0,0,0,0,0,0,0,160,133,122,47,48,28,28,25,92,100,308,314,290,146,149,136,173,120,118,120,111,111,129,129,201,147,200,214,207,207,207,191,196,193,256,267,266,257,222,212,219,190,214,176,200,174,367,367,12261,11960,29963,29964,29963,29965,29961,29963,29961,29963,12795,7710,4627]} 1. d4 {[%emt 0:00:08]} Nf6 {[%emt 0:03:33]} 2. c4 {[%emt 0:00:12]} e6 {[%emt 0:00:07]} 3. Nc3 {[%emt 0:00:07]} Bb4 {[%emt 0:00:12]} 4. e3 {[%emt 0:00:14]} O-O {[%emt 0:01:03]} 5. a3 {[%emt 0:00:44]} Bxc3+ {[%emt 0:00:12]} 6. bxc3 {[%emt 0:00:04]} d6 {[%emt 0:01:39]} 7. Bd3 {[%emt 0:00:13]} e5 {[%emt 0:00:46]} 8. e4 $1 {[%emt 0:00:19][%mdl 4] outshines the older 8.Ne2. E28: Nimzo-Indian: Sämisch: 5...0-0 6 e3.} exd4 {[%emt 0:00:31]} 9. cxd4 {[%emt 0:00:05] [#]} Nxe4 $1 {[%emt 0:02:53]} 10. Ne2 {[%emt 0:00:10] The position is equal.} ({Much worse is} 10. Bxe4 Re8 $15) 10... Re8 {[%emt 0:02:07]} 11. O-O {[%emt 0:00:46] [#]} h6 $146 {[%emt 0:04:22]} ({Predecessor:} 11... Nd7 12. f3 Nef6 13. g4 b5 14. cxb5 Bb7 15. Ng3 a6 16. Bg5 h6 17. Bd2 axb5 {0-1 Del Rio de Angelis,S (2434)-Dardha,D (2600) POR-chT Sao Joao da Madeira 2023 (3.2)}) 12. f3 {[%emt 0:02:18]} Nf6 {[%emt 0:01:03]} 13. g4 {[%emt 0:00:14]} (13. Re1 $11 {keeps the balance.}) 13... d5 $17 {[%emt 0:05:45]} 14. c5 {[%emt 0:04:56]} b6 {[%emt 0:01:18]} 15. g5 {[%emt 0:05:55]} hxg5 {[%emt 0:01:57]} (15... Nh5 $17 16. gxh6 g6) 16. Bxg5 $11 {[%emt 0:00:07]} bxc5 {[%emt 0:01:47]} 17. dxc5 {[%emt 0:00:38]} Ba6 {[%emt 0:02:31]} (17... Nbd7 $5 {[%cal Rd7c5]} 18. Bb5 Re5 $17) 18. Kh1 {[%emt 0:21:22]} Bxd3 {[%emt 0:01:49]} 19. Qxd3 {[%emt 0:00:53]} Nbd7 {[%emt 0:00:15]} 20. Rg1 {[%emt 0:03:28] Bh6 would be deadly.} Nxc5 {[%emt 0:33:46]} 21. Qc3 {[%emt 0:05:37][%csl LRc5,LRf6]} d4 $2 {[%emt 0:10:20]} (21... Kh8 $11) 22. Nxd4 $16 {[%emt 0:02:21]} Ne6 {[%emt 0:05:19] [#]} 23. Nf5 {[%emt 0:17:43] White has more active pieces.} (23. Rad1 $1 $16 Nd5 24. Nxe6 fxe6 25. Qc2) 23... Nd5 $1 $14 {[%emt 0:00:30][%csl LRc3,LRg5]} 24. Qxg7+ {[%emt 0:05:13]} Nxg7 {[%emt 0:00:09] A dynamic duo of knights.} 25. Bxd8 {[%emt 0:00:04]} Rexd8 {[%emt 0:00:37]} (25... Kf8 $1 $11 26. Rxg7 Raxd8) 26. Rxg7+ $16 {[%emt 0:00:19]} Kf8 $2 {[%emt 0:02:53]} (26... Kh8 $16) 27. Rag1 $18 {[%emt 0:01:48][%csl Gg1][%cal Rg7g8]} Ke8 {[%emt 0:00:40] [#]} 28. Re1+ {[%emt 0:00:56]} (28. Rd1 $1 $18 {Strongly threatening Rg8+.} c6 29. Re1+ Kf8 30. Rh7) 28... Kd7 $16 {[%emt 0:03:30]} 29. Rxf7+ {[%emt 0:00:12]} Kc8 {[%emt 0:00:39]} 30. Ne7+ {[%emt 0:04:07]} ({White should try} 30. h4 $18) 30... Kb7 {[%emt 0:00:12]} 31. Nxd5 {[%emt 0:01:06]} Rxd5 {[%emt 0:00:09][%mdl 4096] Endgame KRR-KRR} 32. Rb1+ {[%emt 0:01:05]} Kc6 {[%emt 0:01:13]} 33. Rc1+ {[%emt 0:00:28]} Kb5 {[%emt 0:00:08]} (33... Kd6 $16 {was necessary.}) 34. Rfxc7 {[%emt 0:03:20]} Ka4 {[%emt 0:01:17]} (34... Rd2 $16) 35. R1c3 $18 {[%emt 0:08:14]} Rd1+ {[%emt 0:09:10]} 36. Kg2 {[%emt 0:00:03]} Rd2+ {[%emt 0:00:10]} 37. Kg3 {[%emt 0:00:32]} Rg8+ {[%emt 0:00:18]} 38. Kf4 {[%emt 0:00:04]} Rxh2 {[%emt 0:00:12]} (38... Rf8+ $142 39. Ke3 Rxh2 40. Rxa7+ Kb5) 39. Rxa7+ {[%emt 0:00:31]} Kb5 {[%emt 0:00:07]} 40. Rb7+ {[%emt 0:01:46]} Ka4 {[%emt 0:00:49]} 41. Rb4+ {[%emt 0:30:42]} Ka5 {[%emt 0:30:06]} 42. Rc5+ {[%emt 0:00:07]} Ka6 {[%emt 0:00:06]} 43. Rg5 {[%emt 0:03:23]} Rf8+ {[%emt 0:00:26]} 44. Kg3 {[%emt 0:00:43]} Ra2 {[%emt 0:00:23]} (44... Rfh8 {was worth a try.} 45. Rd4 R8h3+ 46. Kf4 Rh4+ 47. Rg4 R4h3 48. Ra4+ Kb6 49. Rb4+ Kc6 50. Rc4+ Kb7 51. Rg7+ Kb6 52. Rg6+ Kb7 53. Rg7+ Ka6 54. Rg6+ Kb7 55. Rg7+) 45. Rf4 {[%emt 0:01:36]} Rxf4 {[%emt 0:01:03]} (45... Rd8 46. a4 Rd6) 46. Kxf4 {[%emt 0:00:06]} Rxa3 {[%emt 0:00:10] KR-KR} 47. Re5 {[%emt 0:00:54]} Kb6 {[%emt 0:00:45]} 48. Kg4 {[%emt 0:00:23]} Kc6 {[%emt 0:00:22]} 49. f4 {[%emt 0:00:06]} Kd6 {[%emt 0:03:08]} 50. Re1 {[%emt 0:00:18]} Ra7 {[%emt 0:01:18]} 51. Kg5 {[%emt 0:00:36]} Kd5 {[%emt 0:02:15] Weighted Error Value: White=0.13 (very precise) /Black=0.39} 1-0

[Event "ETCC Open 2023"]
[Site "Budva"]
[Date "2023.11.13"]
[Round "3.58"]
[White "Druska, Juraj"]
[Black "Glek, Igor"]
[Result "1/2-1/2"]
[ECO "D22"]
[WhiteElo "2472"]
[BlackElo "2435"]
[Annotator "RC"]
[PlyCount "51"]
[EventDate "2023.11.10"]
[EventType "team-tourn"]
[EventCountry "MNE"]
[SourceTitle "playchess.com"]
[Source "ChessBase"]
[SourceQuality "1"]
[WhiteTeam "Slovakia"]
[BlackTeam "Belgium"]
[WhiteTeamCountry "SVK"]
[BlackTeamCountry "BEL"]
[TimeControl "40/5400+30:1800+30"]

1. d4 {[%emt 0:03:05]} d5 {[%emt 0:08:21]} 2. c4 {[%emt 0:01:07]} dxc4 {[%emt 0:00:12]} 3. Nf3 {[%emt 0:01:15]} a6 {[%emt 0:00:22]} 4. e3 {[%emt 0:01:33]} Bg4 {[%emt 0:00:28]} 5. Bxc4 {[%emt 0:01:34]} e6 {[%emt 0:00:06]} 6. h3 {[%emt 0:14:26]} Bh5 {[%emt 0:00:42]} 7. Qb3 {[%emt 0:04:59]} Bxf3 {[%emt 0:01:49]} 8. gxf3 {[%emt 0:00:45]} b5 {[%emt 0:05:17]} 9. Be2 {[%emt 0:00:14]} c5 {[%emt 0:08:53]} 10. a4 {[%emt 0:19:13]} b4 {[%emt 0:04:38]} 11. dxc5 {[%emt 0:00:22]} Bxc5 {[%emt 0:00:20]} 12. Rg1 {[%emt 0:01:27]} Ne7 {[%emt 0:03:48]} 13. Qc4 {[%emt 0:16:48]} Nd7 {[%emt 0:01:16]} 14. Nd2 {[%emt 0:00:30]} Nf5 {[%emt 0:02:01]} 15. Nb3 {[%emt 0:05:24]} Be7 {[%emt 0:02:34]} 16. Bd2 {[%emt 0:10:22]} O-O {[%emt 0:02:17]} 17. Rd1 {[%emt 0:00:59]} Qb8 {[%emt 0:04:54]} 18. Na5 {[%emt 0:11:36]} Qh2 {[%emt 0:09:08]} 19. Qg4 {[%emt 0:00:34]} Ne5 {[%emt 0:00:40]} 20. Qg2 {[%emt 0:00:11]} Qxg2 {[%emt 0:00:08]} 21. Rxg2 {[%emt 0:00:01]} Nh4 {[%emt 0:00:13]} 22. Rg3 {[%emt 0:00:05]} Nf5 {[%emt 0:00:20]} 23. Rg1 {[%emt 0:00:47]} Nh4 {[%emt 0:00:06]} 24. Rg3 {[%emt 0:00:08]} Nf5 {[%emt 0:00:06]} 25. Rg1 {[%emt 0:00:05]} Nh4 {[%emt 0:00:04]} 26. Rg3 1/2-1/2

[Event "ETCC Open 2023"]
[Site "Budva"]
[Date "2023.11.13"]
[Round "3.59"]
[White "Beukema, Jasper"]
[Black "Sahidi, Samir"]
[Result "0-1"]
[ECO "B90"]
[WhiteElo "2357"]
[BlackElo "2464"]
[Annotator "RC"]
[PlyCount "100"]
[EventDate "2023.11.10"]
[EventType "team-tourn"]
[EventCountry "MNE"]
[SourceTitle "playchess.com"]
[Source "ChessBase"]
[SourceQuality "1"]
[WhiteTeam "Belgium"]
[BlackTeam "Slovakia"]
[WhiteTeamCountry "BEL"]
[BlackTeamCountry "SVK"]
[TimeControl "40/5400+30:1800+30"]

1. e4 {[%emt 0:00:03]} c5 {[%emt 0:00:16]} 2. Nf3 {[%emt 0:00:03]} d6 {[%emt 0:01:02]} 3. d4 {[%emt 0:00:08]} cxd4 {[%emt 0:00:17]} 4. Nxd4 {[%emt 0:00:04]} Nf6 {[%emt 0:00:33]} 5. Nc3 {[%emt 0:00:06]} a6 {[%emt 0:00:12]} 6. h3 {[%emt 0:01:04]} e5 {[%emt 0:04:17]} 7. Nb3 {[%emt 0:00:11]} Be6 {[%emt 0:02:29]} 8. Be3 {[%emt 0:03:18]} Nc6 {[%emt 0:07:15]} 9. Be2 {[%emt 0:03:46]} Be7 {[%emt 0:02:51]} 10. Qd2 {[%emt 0:05:24]} b5 {[%emt 0:04:57]} 11. Bf3 {[%emt 0:01:24]} Na5 {[%emt 0:12:32]} 12. Nxa5 {[%emt 0:04:14]} Qxa5 {[%emt 0:01:26]} 13. g4 {[%emt 0:00:26]} h6 {[%emt 0:08:02]} 14. Bg2 {[%emt 0:03:34]} Rc8 {[%emt 0:05:23]} 15. O-O {[%emt 0:01:07]} b4 {[%emt 0:02:43]} 16. Nd5 {[%emt 0:00:55]} Bxd5 {[%emt 0:01:47]} 17. exd5 {[%emt 0:00:08]} Qb5 {[%emt 0:03:29]} 18. Rfd1 {[%emt 0:03:00]} O-O {[%emt 0:03:43]} 19. Bf1 {[%emt 0:06:26]} Qb7 {[%emt 0:00:49]} 20. Qd3 {[%emt 0:00:08]} a5 {[%emt 0:04:18]} 21. c4 {[%emt 0:00:29]} bxc3 {[%emt 0:05:51]} 22. bxc3 {[%emt 0:00:06]} Nd7 {[%emt 0:00:11]} 23. Rab1 {[%emt 0:02:48]} Qc7 {[%emt 0:00:24]} 24. Qa6 {[%emt 0:01:33]} Nc5 {[%emt 0:04:08]} 25. Bxc5 {[%emt 0:05:22]} Qxc5 {[%emt 0:00:47]} 26. Rb5 {[%emt 0:00:08]} Qxc3 {[%emt 0:00:47]} 27. Qxa5 {[%emt 0:00:06]} Qf3 {[%emt 0:02:34]} 28. Qd2 {[%emt 0:02:24]} Bg5 {[%emt 0:02:42]} 29. Qd3 {[%emt 0:00:16]} Qf4 {[%emt 0:00:35]} 30. Bg2 {[%emt 0:02:44]} Rc4 {[%emt 0:08:17]} 31. Rdb1 {[%emt 0:02:09]} Bh4 {[%emt 0:01:11]} 32. Qe2 {[%emt 0:04:36]} Rd4 {[%emt 0:00:58]} 33. R1b2 {[%emt 0:01:35]} f5 {[%emt 0:02:06]} 34. gxf5 {[%emt 0:05:00]} Rxf5 {[%emt 0:02:53]} 35. R5b3 {[%emt 0:02:01]} Bxf2+ {[%emt 0:02:11]} 36. Kh1 {[%emt 0:00:40]} Qc1+ {[%emt 0:01:31]} 37. Bf1 {[%emt 0:00:08]} Bh4 {[%emt 0:02:48]} 38. Rb1 {[%emt 0:00:28]} Qf4 {[%emt 0:00:39]} 39. Bg2 {[%emt 0:00:06]} e4 {[%emt 0:00:30]} 40. Rb8+ {[%emt 0:01:11]} Kf7 {[%emt 0:00:31]} 41. Qb5 {[%emt 0:33:01]} Qe5 {[%emt 0:11:02]} 42. Qd7+ {[%emt 0:00:00]} Be7 {[%emt 0:01:32]} 43. h4 {[%emt 0:00:00]} e3 {[%emt 0:02:19]} 44. Bh3 {[%emt 0:00:00]} Rxh4 {[%emt 0:03:03]} 45. Qe6+ {[%emt 0:00:00]} Qxe6 {[%emt 0:00:07]} 46. dxe6+ {[%emt 0:00:00]} Kf6 {[%emt 0:04:06]} 47. Kg2 {[%emt 0:00:00]} Rg5+ {[%emt 0:02:03]} 48. Kh2 {[%emt 0:00:00]} d5 {[%emt 0:00:52]} 49. Rf1+ {[%emt 0:00:00]} Kg6 {[%emt 0:00:12]} 50. Rb6 {[%emt 0:00:00]} d4 {[%emt 0:01:46]} 0-1

[Event "ETCC Open 2023"]
[Site "Budva"]
[Date "2023.11.13"]
[Round "3.60"]
[White "Haring, Filip"]
[Black "Lenaerts, Lennert"]
[Result "1-0"]
[ECO "B40"]
[WhiteElo "2446"]
[BlackElo "2322"]
[Annotator "RC"]
[PlyCount "65"]
[EventDate "2023.11.10"]
[EventType "team-tourn"]
[EventCountry "MNE"]
[SourceTitle "playchess.com"]
[Source "ChessBase"]
[SourceQuality "1"]
[WhiteTeam "Slovakia"]
[BlackTeam "Belgium"]
[WhiteTeamCountry "SVK"]
[BlackTeamCountry "BEL"]
[TimeControl "40/5400+30:1800+30"]

1. e4 {[%emt 0:00:05]} c5 {[%emt 0:00:17]} 2. Nf3 {[%emt 0:00:30]} e6 {[%emt 0:00:47]} 3. b3 {[%emt 0:01:16]} b6 {[%emt 0:03:56]} 4. Bb2 {[%emt 0:00:44]} Bb7 {[%emt 0:00:27]} 5. Nc3 {[%emt 0:00:18]} Nc6 {[%emt 0:04:02]} 6. g3 {[%emt 0:02:28]} d6 {[%emt 0:00:55]} 7. Bg2 {[%emt 0:02:42]} Be7 {[%emt 0:01:03]} 8. d4 {[%emt 0:08:25]} cxd4 {[%emt 0:07:32]} 9. Nxd4 {[%emt 0:01:06]} Nxd4 {[%emt 0:02:29]} 10. Qxd4 {[%emt 0:00:08]} Nf6 {[%emt 0:00:05]} 11. O-O-O {[%emt 0:06:51]} O-O {[%emt 0:01:13]} 12. Kb1 {[%emt 0:07:48]} a6 {[%emt 0:04:22]} 13. g4 {[%emt 0:08:40]} e5 {[%emt 0:03:57]} 14. Qe3 {[%emt 0:02:59]} Nxg4 {[%emt 0:01:34]} 15. Qe2 {[%emt 0:02:09]} Nf6 {[%emt 0:02:11]} 16. f4 {[%emt 0:01:47]} Qc7 {[%emt 0:04:11]} 17. Rhg1 {[%emt 0:03:57]} exf4 {[%emt 0:10:23]} 18. e5 {[%emt 0:10:10]} f3 {[%emt 0:05:43]} 19. Bxf3 {[%emt 0:02:09]} Bxf3 {[%emt 0:00:05]} 20. Rxg7+ {[%emt 0:06:48]} Kxg7 {[%emt 0:02:03]} 21. exf6+ {[%emt 0:00:11]} Bxf6 {[%emt 0:00:48]} 22. Qxf3 {[%emt 0:00:20]} Be5 {[%emt 0:22:28]} 23. Nd5 {[%emt 0:00:04]} Qd8 {[%emt 0:00:10]} 24. Rg1+ {[%emt 0:01:18]} Kh8 {[%emt 0:00:10]} 25. Nf6 {[%emt 0:00:33]} Bxb2 {[%emt 0:00:16]} 26. Kxb2 {[%emt 0:00:07]} Qe7 {[%emt 0:00:21]} 27. Rg5 {[%emt 0:04:49]} h6 {[%emt 0:06:57]} 28. Rh5 {[%emt 0:00:54]} Rg8 {[%emt 0:00:08]} 29. Rxh6+ {[%emt 0:01:58]} Kg7 {[%emt 0:00:02]} 30. Qg4+ {[%emt 0:00:18]} Kxh6 {[%emt 0:00:10]} 31. Qh5+ {[%emt 0:00:06]} Kg7 {[%emt 0:00:10]} 32. Qg5+ {[%emt 0:00:03]} Kh8 {[%emt 0:00:03]} 33. Qh6# {[%emt 0:25:19]} 1-0

[Event "ETCC Open 2023"]
[Site "Budva"]
[Date "2023.11.13"]
[Round "3.61"]
[White "Kalezic, Blazo"]
[Black "Keinanen, Toivo"]
[Result "1-0"]
[ECO "C02"]
[WhiteElo "2401"]
[BlackElo "2527"]
[Annotator "RC"]
[PlyCount "133"]
[EventDate "2023.11.10"]
[EventType "team-tourn"]
[EventCountry "MNE"]
[SourceTitle "playchess.com"]
[Source "ChessBase"]
[SourceQuality "1"]
[WhiteTeam "Montenegro"]
[BlackTeam "Finland"]
[WhiteTeamCountry "MNE"]
[BlackTeamCountry "FIN"]
[TimeControl "40/5400+30:1800+30"]

1. e4 {[%emt 0:00:04]} e6 {[%emt 0:00:03]} 2. d4 {[%emt 0:00:20]} d5 {[%emt 0:01:37]} 3. e5 {[%emt 0:00:18]} c5 {[%emt 0:00:05]} 4. c3 {[%emt 0:00:05]} Nc6 {[%emt 0:00:03]} 5. Nf3 {[%emt 0:00:07]} Bd7 {[%emt 0:00:04]} 6. Be2 {[%emt 0:00:31]} f6 {[%emt 0:00:09]} 7. O-O {[%emt 0:01:05]} fxe5 {[%emt 0:00:09]} 8. dxe5 {[%emt 0:02:59]} Nh6 {[%emt 0:01:04]} 9. c4 {[%emt 0:01:58]} d4 {[%emt 0:00:05]} 10. Re1 {[%emt 0:01:52]} Nf7 {[%emt 0:10:11]} 11. Nbd2 {[%emt 0:15:43]} Be7 {[%emt 0:18:39]} 12. Ne4 {[%emt 0:06:57]} O-O {[%emt 0:09:47]} 13. Bf4 {[%emt 0:03:07]} Nh8 {[%emt 0:04:49]} 14. Bg3 {[%emt 0:02:11]} Ng6 {[%emt 0:02:13]} 15. Bd3 {[%emt 0:00:56]} Nf4 {[%emt 0:03:33]} 16. Bb1 {[%emt 0:09:16]} Be8 {[%emt 0:16:26]} 17. Qd2 {[%emt 0:05:31]} Nh3+ {[%emt 0:03:28]} 18. gxh3 {[%emt 0:01:26]} Rxf3 {[%emt 0:00:01]} 19. Bc2 {[%emt 0:07:12]} Bg6 {[%emt 0:03:47]} 20. Bd1 {[%emt 0:01:58]} Rf8 {[%emt 0:01:02]} 21. Bg4 {[%emt 0:03:12]} Qd7 {[%emt 0:02:27]} 22. h4 {[%emt 0:01:41]} Bf5 {[%emt 0:02:05]} 23. h3 {[%emt 0:01:36]} b6 {[%emt 0:04:01]} 24. Rad1 {[%emt 0:05:54]} Rad8 {[%emt 0:01:03]} 25. h5 {[%emt 0:01:24]} h6 {[%emt 0:03:04]} 26. Kh2 {[%emt 0:05:56]} Kh7 {[%emt 0:01:27]} 27. f4 {[%emt 0:00:41]} a6 {[%emt 0:01:16]} 28. Qg2 {[%emt 0:01:56]} b5 {[%emt 0:02:48]} 29. b3 {[%emt 0:00:21]} bxc4 {[%emt 0:01:35]} 30. bxc4 {[%emt 0:00:06]} Na5 {[%emt 0:01:20]} 31. Rc1 {[%emt 0:08:54]} Rb8 {[%emt 0:00:44]} 32. Rg1 {[%emt 0:00:24]} Bxg4 {[%emt 0:06:44]} 33. hxg4 {[%emt 0:00:18]} d3 {[%emt 0:00:19]} 34. Rgd1 {[%emt 0:05:14]} Nc6 {[%emt 0:00:48]} 35. Rc3 {[%emt 0:01:10]} Nd4 {[%emt 0:00:17]} 36. Rdxd3 {[%emt 0:01:44]} Qa4 {[%emt 0:00:13]} 37. Rd2 {[%emt 0:02:04]} Kh8 {[%emt 0:00:38]} 38. Kh3 {[%emt 0:01:43]} Rb1 {[%emt 0:00:31]} 39. Qf2 {[%emt 0:01:22]} Rfb8 {[%emt 0:00:44]} 40. f5 {[%emt 0:00:35]} exf5 {[%emt 0:00:38]} 41. gxf5 {[%emt 0:30:23]} Rf8 {[%emt 0:12:48]} 42. f6 {[%emt 0:00:00]} Qd7+ {[%emt 0:05:40]} 43. Kg2 {[%emt 0:00:00]} Qc6 {[%emt 0:05:55]} 44. Qf4 {[%emt 0:00:00]} gxf6 {[%emt 0:07:13]} 45. Qxh6+ {[%emt 0:02:46]} Kg8 46. Qg6+ {[%emt 0:00:30]} Kh8 47. exf6 {[%emt 0:00:00]} Bxf6 {[%emt 0:01:33]} 48. Rf2 {[%emt 0:00:00]} Nf5 {[%emt 0:00:51]} 49. Qxf5 {[%emt 0:00:00]} Bg7 {[%emt 0:00:04]} 50. Qd5 {[%emt 0:00:00]} Rxf2+ {[%emt 0:00:15]} 51. Bxf2 {[%emt 0:00:00]} Qxd5 {[%emt 0:00:02]} 52. cxd5 {[%emt 0:00:00]} Bxc3 {[%emt 0:00:06]} 53. Nxc3 {[%emt 0:00:00]} Rc1 {[%emt 0:02:04]} 54. Bxc5 {[%emt 0:00:00]} Rc2+ {[%emt 0:00:02]} 55. Kf1 {[%emt 0:00:00]} Kg8 {[%emt 0:00:37]} 56. Bd4 {[%emt 0:00:00]} Rh2 {[%emt 0:00:48]} 57. Ne4 {[%emt 0:00:00]} Kf7 {[%emt 0:01:05]} 58. Nf6 {[%emt 0:00:00]} Rxa2 {[%emt 0:00:00]} 59. Ke1 {[%emt 0:00:00]} Ra4 {[%emt 0:00:26]} 60. Bc3 {[%emt 0:00:07]} Rc4 {[%emt 0:00:21]} 61. Kd2 {[%emt 0:00:28]} Rc8 {[%emt 0:00:33]} 62. d6 {[%emt 0:01:34]} Kg7 {[%emt 0:00:38]} 63. Ba5 {[%emt 0:02:39]} Kxf6 {[%emt 0:00:30]} 64. d7 {[%emt 0:00:06]} Rg8 {[%emt 0:00:28]} 65. d8=Q+ {[%emt 0:00:12]} Rxd8+ {[%emt 0:00:02]} 66. Bxd8+ {[%emt 0:00:10]} Kg7 {[%emt 0:00:05]} 67. Bg5 {[%emt 0:00:06]} 1-0